Cogmind - Beta 17 @@@ ROGUE MODE // 2026.07.03 @ 00:58:42 // Winter2019/RPGLIKE Player: chai Result: Destroyed by S-10 Pest with Light Assault Rifle Performance ------------- Evolutions (0) 0 Regions Visited (2) 400 Robots Destroyed (15) 75 Value Destroyed (319) 319 Prototype IDs (4) 80 Alien Tech Used (0) 0 Bonus (0) 0 TOTAL SCORE: 874 Bonus ------- None Cogmind --------- Core Integrity 0/800 Matter 276/300 Energy 200/200 System Corruption 0% Temperature Cool (0) Movement Rolling (90) Location -10/Subcaves Parts ------- > --- POWER (1) -------- Subdweller Power Source > --- PROPULSION (2) --- Wheel Compact Wheel > --- UTILITY (2) ------ Heat Sink > --- WEAPON (2) ------- Beam Cannon Assault Rifle > --- INVENTORY (1) ---- Mining Claw Peak State ------------ > --- POWER ------------ Subdweller Power Source > --- PROPULSION ------- Wheel Compact Wheel > --- UTILITY ---------- Heat Sink Light Armor Plating > --- WEAPON ----------- Beam Cannon Assault Rifle > --- INVENTORY -------- Mining Claw [Rating: 8] Favorites ----------- Power Light Ion Engine Engine Light Ion Engine Propulsion Compact Wheel Treads Light Treads Wheel Compact Wheel Utility Light Armor Plating Device Heat Sink Protection Light Armor Plating Weapon Assault Rifle Energy Cannon Beam Cannon Ballistic Gun Assault Rifle Slashing Weapon Mining Claw Build | -11 -10 -10 ------- Run | Yrd Mat Sub Slots Evolved 3 | 3 . . Power . | . . . Propulsion 1 | 1 . . Utility 1 | 1 . . Weapon 1 | 1 . . Parts Attached 13 | 6 6 1 Power 3 | 2 . 1 Engine 3 | 2 . 1 Core . | . . . Reactor . | . . . Propulsion 3 | 2 1 . Treads 1 | 1 . . Leg . | . . . Wheel 2 | 1 1 . Hover . | . . . Flight . | . . . Utility 3 | . 3 . Device 1 | . 1 . Storage . | . . . Processor . | . . . Hackware . | . . . Protection 2 | . 2 . Artifact . | . . . Weapon 4 | 2 2 . Energy Gun . | . . . Energy Cannon 1 | . 1 . Ballistic Gun 2 | 2 . . Ballistic Cannon . | . . . Launcher . | . . . Special Weapon . | . . . Impact Weapon . | . . . Slashing Weapon 1 | . 1 . Piercing Weapon . | . . . Special Melee Weapon . | . . . Unidentified Prototypes . | . . . Parts Lost 1 | . . 1 Power . | . . . Propulsion . | . . . Utility 1 | . . 1 Weapon . | . . . Highest Loss Streak 1 | . . 1 To Critical Strikes . | . . . Average Backups . | . . 1 Power . | . . . Propulsion . | . . . Utility . | . . . Weapon . | . . 1 Tool/Special . | . . . Unused Backups 1 | . 1 . Power . | . . . Propulsion . | . . . Utility 1 | . 1 . Weapon . | . . . Tool/Special . | . . . Average Slot Usage (%) 97 | . 97 98 Engine 14 | . 14 14 Treads 5 | . 7 . Wheel 22 | . 20 28 Device 6 | . 4 14 Protection 18 | . 21 12 Energy Cannon 13 | . 12 14 Ballistic Gun 13 | . 14 8 Slashing Weapon 1 | . . 5 Peak Build Rating 8 | 5 7 8 Average Rating 6 | 3 6 7 On Entrance 4 | . 5 7 Avg Prop Armor Cover (%) 11 | 16 10 . Naked Turns . | . . . Heaviest Build 14 | 7 14 14 Greatest Support 26 | 20 26 26 Greatest Overweight (x) . | . . . Average Overweight (x) . | . . . Largest Inventory Capacity 1 | . 1 1 Average Capacity . | . . 1 Most Carried 1 | . 1 1 Average Carried . | . . 1 Final Capacity 1 | . 1 1 Final Carried 1 | . 1 1 Class Distribution -------------------- 100% | Mutant Dominant Class ---------------- Mutant | -10/Materials Mutant | -10/Subcaves Resources | -11 -10 -10 ----------- Run | Yrd Mat Sub Matter Collected 582 | 230 301 51 Remotely . | . . . Salvage Created 339 | . 269 70 Parts 32 | . 24 8 Haulers Intercepted 1 | . 1 . Recyclers Shooed . | . . . Parts Field Recycled . | . . . Retrieved Matter . | . . . Parts Self-Destructed 5 | . . 5 Prevented . | . . . Parts Restored . | . . . Kills | -11 -10 -10 ------- Run | Yrd Mat Sub Combat Hostiles Destroyed 14 | . 12 2 Guns 8 | . 7 1 Cannons 6 | . 5 1 Classes Destroyed 5 | . 3 2 Hauler 1 | . 1 . Swarmer 9 | . 9 . Grunt 3 | . 3 . Sentry 1 | . . 1 Subdweller 1 | . . 1 Best Kill Streak 4 | . 4 1 Combat Bots Only 4 | . 4 1 Max Kills in Single Turn 1 | . 1 1 Gunslinging . | . . . Exploded . | . . . Melee . | . . . Uniques/NPCs Destroyed . | . . . Combat | -11 -10 -10 -------- Run | Yrd Mat Sub Hostile Shots Fired 123 | . 71 52 Missed 28 | . 17 11 Hits 95 | . 54 41 Projectile 95 | . 54 41 Critical Strikes 2 | . 1 1 Damage Taken 1239 | . 748 491 Core 918 | . 542 376 Absorbed by Shields . | . . . Redirected to Core 736 | . 453 283 Core Remaining (%) 100 | 100 . . Volleys Fired 58 | . 46 12 Largest 2 | . 2 2 Hottest 80 | . 80 80 Shots Fired 116 | . 92 24 Gun 58 | . 46 12 Cannon 58 | . 46 12 Launcher . | . . . Special . | . . . Kinetic 58 | . 46 12 Thermal 58 | . 46 12 Explosive . | . . . Electromagnetic . | . . . Robot Hit Streak 10 | . 6 10 Robot Miss Streak 5 | . 5 2 Penetration Max . | . . . Secondary Targets . | . . . Shots Hit Robots 66 | . 49 17 Core Hits 21 | . 17 4 Critical Kills . | . . . Critical Parts Destroyed . | . . . Critical Strikes . | . . . Melee Attacks 1 | . 1 . Impact . | . . . Slashing 1 | . 1 . Piercing . | . . . Sneak Attacks . | . . . Combat Hostiles . | . . . Follow-up Attacks . | . . . Damage Inflicted 999 | . 753 246 Guns 459 | . 334 125 Cannons 540 | . 419 121 Explosions . | . . . Melee . | . . . Ramming . | . . . Kinetic 459 | . 334 125 Thermal 540 | . 419 121 Explosive . | . . . Electromagnetic . | . . . Impact . | . . . Slashing . | . . . Piercing . | . . . Highest Corruption . | . . . Average Corruption . | . . . Corruption Purged . | . . . Corruption Blocked . | . . . Overload Shots . | . . . Overflow Damage . | . . . Projectiles . | . . . Explosions . | . . . Melee . | . . . Knockbacks . | . . . Impact . | . . . Kinetic . | . . . Secondary . | . . . Self-Inflicted Damage . | . . . Shots . | . . . Rammed . | . . . Targets Rammed . | . . . Kicked . | . . . Crushed . | . . . Highest Temperature 258 | . 258 . Average Temperature 85 | . 85 . Received Heat Transfer 267 | . 186 81 Siege Activations . | . . . Martial Activations . | . . . Shielding Activations . | . . . Robots Disrupted . | . . . Combat Hostiles . | . . . Robots Corrupted . | . . . Combat Hostiles . | . . . Parts Fried . | . . . Impact Corruptions . | . . . Robots Melted . | . . . Combat Hostiles . | . . . Parts Melted 1 | . 1 . Heat Transferred 1147 | . 888 259 Parts Sabotaged . | . . . Parts Stolen . | . . . Parts Stripped . | . . . Power Chain Reactions . | . . . Alert | -11 -10 -10 ------- Run | Yrd Mat Sub Maximum Alert Level 1 | . 1 . Low Security (%) 91 | 100 91 . Level 1 8 | . 8 . Level 2 . | . . . Level 3 . | . . . Level 4 . | . . . Level 5 . | . . . High Security . | . . . Max Security . | . . . Peak Influence 217 | . 217 . Initial . | . . . Average 112 | . 118 . Influence Increases 479 | . 429 50 Destroy 0b10 Robot/C 260 | . 240 20 Destroy 0b10 Robot/NC 5 | . 5 . Destroy Leader 42 | . 42 . Successful Hack 20 | . 20 . Disable Machine 60 | . 60 . Destroy Structure 2 | . 2 . Lose Combat Pursuer 90 | . 60 30 Influence Decreases 449 | . 300 149 Entered New Map 63 | . . 63 Time Decay 386 | . 300 86 Squads Dispatched 1 | . 1 . Investigation . | . . . Extermination . | . . . Reinforcement 1 | . 1 . Assault . | . . . Garrison . | . . . Intercept . | . . . Searches Triggered . | . . . Construction Impeded . | . . . Haulers Reinforced . | . . . Active Scanning Responses . | . . . Cargo Convoy Interrupts . | . . . Stealth | -11 -10 -10 --------- Run | Yrd Mat Sub Distress Signals 2 | . 2 . Communications Jammed . | . . . Distress Signals . | . . . Times Spotted 29 | . 25 4 Peak Tracking Total 7 | . 7 4 Tactical Retreats 5 | . 3 2 Traps | -11 -10 -10 ------- Run | Yrd Mat Sub Traps Triggered 1 | . 1 . Indirectly . | . . . Trap Hack Attempts . | . . . Triggered . | . . . Disarmed . | . . . Reprogrammed . | . . . Reused . | . . . Traps Extracted . | . . . Installed . | . . . Triggered . | . . . Machines | -11 -10 -10 ---------- Run | Yrd Mat Sub Machines Disabled 4 | . 4 . Max in Single Turn 2 | . 2 . Machines Repaired . | . . . Machines Dismantled . | . . . Machines Sabotaged . | . . . Overloaded Fab Kills . | . . . Hacking | -11 -10 -10 --------- Run | Yrd Mat Sub Machines Accessed 7 | . 7 . Terminals 5 | . 5 . Fabricators . | . . . Repair Stations 1 | . 1 . Recycling Units 1 | . 1 . Scanalyzers . | . . . Garrison Access . | . . . Total Hacks 21 | . 21 . Successful 11 | . 11 . Failed 10 | . 10 . Catastrophic . | . . . Database Lockouts . | . . . Manual . | . . . Terminals 18 | . 18 . Fabricators . | . . . Repair Stations 1 | . 1 . Recycling Units 2 | . 2 . Scanalyzers . | . . . Garrison Access . | . . . Terminal Hacks 8 | . 8 . Record 1 | . 1 . Prototype ID Bank 2 | . 2 . Emergency Access Points 2 | . 2 . Alert Level 2 | . 2 . Transport Status 1 | . 1 . Fabricator Hacks . | . . . Repair Station Hacks 1 | . 1 . Refit 1 | . 1 . Recycling Unit Hacks 2 | . 2 . Report Inventory 2 | . 2 . Scanalyzer . | . . . Garrison Access Hacks . | . . . Unauthorized Hacks . | . . . Terminals . | . . . Fabricators . | . . . Repair Stations . | . . . Recycling Units . | . . . Scanalyzers . | . . . Garrison Access . | . . . Data Cores Recovered . | . . . Used . | . . . Hacking Detections 6 | . 6 . Full Trace Events . | . . . Feedback Events . | . . . Feedback Blocked . | . . . Robot Schematics Acquired . | . . . Robots Built . | . . . Authchips . | . . . Time . | . . . Total Robot Build Rating . | . . . Part Schematics Acquired . | . . . Parts Built . | . . . Authchips . | . . . Time . | . . . Total Part Build Rating . | . . . Part Studies Acquired . | . . . Parts Repaired . | . . . Time . | . . . Parts Recycled . | . . . Recycled Matter . | . . . Retrieved Matter . | . . . Retrieved Components . | . . . Parts Scanalyzed . | . . . Part Schematics Acquired . | . . . Parts Damaged . | . . . Bothacking | -11 -10 -10 ------------ Run | Yrd Mat Sub Used RIF Installer . | . . . Robots Hacked . | . . . Non-combat . | . . . Combat . | . . . Robot Hacks Applied . | . . . Relay Couplers Released . | . . . Fabnet Peak Effective % . | . . . Robots Rewired . | . . . Allies Hacked . | . . . Hacks Repelled . | . . . Allies | -11 -10 -10 -------- Run | Yrd Mat Sub Total Allies . | . . . Largest Group . | . . . Highest-Rated Group . | . . . Highest-Rated Ally . | . . . Total Orders . | . . . Ally Attacks . | . . . Total Damage . | . . . Kills . | . . . Allies Corrupted . | . . . Allies Melted . | . . . Intel | -11 -10 -10 ------- Run | Yrd Mat Sub Active Infowar (turns) . | . . . Robot Analysis Total . | . . . Derelict Logs Recovered 1 | . . 1 Drone Launches . | . . . Drone Recoveries . | . . . Exploration | -11 -10 -10 ------------- Run | Yrd Mat Sub Turns Passed 1032 | 38 753 241 Spaces Moved 822 | 29 578 215 Core 2 | 2 . . Treads 2 | 2 . . Legs . | . . . Wheels 818 | 25 578 215 Hover . | . . . Flight . | . . . Fastest Speed 50 | 50 90 90 Average Speed 93 | 100 94 90 Slowest Speed 160 | 160 100 90 Overloaded Moves . | . . . Propulsion Burnouts . | . . . Robots Hopped . | . . . Potential Cave-ins . | . . . Cave-ins Triggered . | . . . Exploration Rate (%) 39 | 4 94 19 Regions Visited 2 Branch Regions 1 Pre-discovered Areas . | . . . Known Exits Taken . | . . . Unknown Exits Taken 2 | 1 1 . Scrap Searched . | . . . Spaces Dug 1 | . 1 . Terrain Destroyed 1 | . 1 . Melee 1 | . 1 . Projectile . | . . . AOE . | . . . Terrain Rammed . | . . . Walls Destroyed . | . . . Machines Disabled . | . . . Actions | -11 -10 -10 --------- Run | Yrd Mat Sub Total 965 | 35 692 238 Wait 55 | . 47 8 Move 820 | 28 577 215 Hop . | . . . Pick Up 2 | . 2 . Fast Attach 11 | 6 5 . Attach . | . . . Detach . | . . . Swap 3 | . 1 2 Drop 8 | 1 6 1 Fire 58 | . 46 12 Melee 1 | . 1 . Ram . | . . . Kick . | . . . Crush . | . . . Escape Stasis . | . . . Rewire . | . . . Trap . | . . . Miscellaneous 7 | . 7 . Route ------- -11/Scrapyard -10/Materials (discovered 5 exits: [*Mat x3] / [*Min] / [*Sub]) -10/Subcaves History --------- Turn | Location | Event 7 | -11/Scrapyard | Upgraded with Propulsion slot (x1) 7 | -11/Scrapyard | Upgraded with Utility slot (x1) 7 | -11/Scrapyard | Upgraded with Weapon slot (x1) 15 | -11/Scrapyard | Discovered new exit (range 16) 39 | -11/Scrapyard | Entered Materials 240 | -10/Materials | Discovered new exit (range 16) 316 | -10/Materials | Build established: Mutant 466 | -10/Materials | Discovered new exit (range 13) 565 | -10/Materials | Reached level 2 606 | -10/Materials | Discovered new exit (range 4) 670 | -10/Materials | Discovered new exit (range 15) 739 | -10/Materials | Derelicts attacked the area 745 | -10/Materials | Core integrity fell below 50% 752 | -10/Materials | Discovered new exit (range 7) 792 | -10/Materials | Entered Subcaves 985 | -10/Subcaves | Learned Materials emergency access door positions 1022 | -10/Subcaves | Core integrity fell below 20% 1033 | -10/Subcaves | Destroyed by S-10 Pest with Light Assault Rifle Last Messages --------------- 00752_ EXIT=FOUND 00762_ U-05 Engineer destroyed. LOCATION=UNKNOWN AMBIENT_HEAT=-10 GOAL=ESCAPE 00794_ Upgraded: Core Integrity (+200) 00803_ 7P-JTO(u) builds Twisted Machinery. 00890_ 95-J0B(R) destroyed. 00895_ Acquired 41 matter. 00898_ Subatomizers dissect the Disposable Heat Sink. 00898_ Dropped Lgt. Ion Engine. 00899_ Acquired 10 matter. 00908_ Subatomizers dissect the Disposable Heat Sink. 00962_ Critical hit (Burn: +37). 00985_ Acquired derelict log, extracted data. Data stored: Materials emergency access points. 01007_ Lgt. Armor Plating destroyed. 01030_ Y-45 Defender destroyed. Map ----- +----------------------------------------------------+ | ?????????????????????????????????????????????????? | | ?????????????????????????????????????????????????# | | ?????????????????????????????????????????????????# | | ???????????????????????????????????????????????? | | ???????????????????????????????????????????????? | | ?????????????????????????? ## ??????????????? | | ?????????????????????????? ??????????????? # | | ?????????????????????????? ???????#####?????? | | ???????????????????????#? ??####### ##????? | | ??????????????????????? ? %??# ## ##???? | | ???????????????????????? #??#% ##??? | | ?????????????????????????# ???# ## #### | | ?????????????????????????# ???# #### | | ??????????????????????????# ##?## ##?## | | ??????????????????????##### ### ##?## | | ?????????????????????## # # #??# | | ?????????###?????????#% % #??# | | ?????????#"""????????# #?# ### | | ?????????#" ????????# ## ##### | | ?????????#" ???????## % #### | | ?????????# ????????## % ### ## | | ?????????# ???????# #### | | ??????????? ??????## ## ### | | ????????????# ?????# [ ## ### | | ????????????# ##???##%*## ### | | ????????????# ! ######=!@# % ## ### | | ????????????##%*% % # # % # #???? | | ?????????????## % ss ## %## #????? | | ??????????????# # #####% #### ##????? | | ??????????????##########???#######??## ##?????? | | ?????????????????????????????????????######??????? | | ?????????????????????????????????????????????????? | | ?????????????????????????????????????????????????? | | ?????????????????????????????????????????????????? | | ?????????????????????????????????????????????????? | | ?????????????????????????????????????????????????? | | ?????????????????????????????????????????????????? | | ?????????????????????????????????????????????????? | | ?????????????????????????????????????????????????? | | ?????????????????????????????????????????????????? | | ?????????????????????????????????????????????????? | | ?????????????????????????????????????????????????? | | ?????????????????????????????????????????????????? | | ?????????????????????????????????????????????????? | | ?????????????????????????????????????????????????? | | | | | | | | | | | +----------------------------------------------------+ Best States ------------- Heat Dissipation 35 Energy Generation 15 Energy Capacity 200 Matter Stores 300 Matter Capacity 300 Sight Range 16 Terrain Scan Density 10 Armor Coverage 300 Evasion (%) 42 Item Schematics ----------------- None Robot Schematics ------------------ None Fabricated ------------ Nothing Repaired ---------- Nothing Studied --------- None Alien Tech Used ----------------- None Achievements -------------- None Challenges ------------ None RPGLIKE | -11 -10 -10 --------- Run | Yrd Mat Sub Levels Raised 1 | . 1 . XP Earned 5830 | 3000 1730 1100 XP Spent 1910 | 1500 250 160 Upgrades 8 | 3 1 4 Propulsion Slot 1 | 1 . . Utility Slot 1 | 1 . . Weapon Slot 1 | 1 . . Core Integrity 4 | . . 4 Inventory Capacity 1 | . 1 . Protomatter Created 118 | . 63 55 Integrity Restored 114 | . 114 . Core 114 | . 114 . Protomatter Decayed 13 | . . 13 Game ------ Seed GunOvertunedArachnoskeleton Manual? 0 Play Time 00:18:55 Cumulative 53.3 hours Start 2026.07.03 @ 00:37:31 End 2026.07.03 @ 00:58:42 Sessions 1 Manual Loads 0 Difficulty Rogue Special Mode Winter2019/RPGLIKE Game No. 33 Rogue 33 Adventurer 0 Explorer 0 Win Type - Total 0 Types 0/0/0/0/0/0/0/0/0/0 Lore% 38 Gallery% 29 Achievement% 26 Wizard Run 0 Options --------- Layout 2 ASCII 0 Keyboard 0 Movement Mouse Keybinds 0 Fullscreen 1 Font 32/SmallcapsGlow Map View 50x44 Zoom Use 0% Tactical HUD 1 Map Filters NONE Filters NONE Steam 1 RUN: 78d408b1-f906-47c7-8f9c-56b7bd626189